[Event "Titled Tuesday Blitz March 15 Late 2022"]
[White "Awoki, Daniel Teidi"]
[Black "Yedidia, Daniel"]
[WhiteFideId "2100827"]
[BlackFideId "30905907"]
[WhiteElo "2023"]
[BlackElo "2506"]
[Result "1/2-1/2"]
[Round "03"]
[TimeControl "180+1"]
[Date "2022.03.16"]
[WhiteClock "0:00:07"]
[BlackClock "0:00:07"]

1. Nf3 {[%clk 0:02:24]}  Nf6 {[%clk 0:02:59]} 2. d4 {[%clk 0:02:24]}  d5 {[%clk 0:03:00]} 3. c4 {[%clk 0:02:23]}  e6 {[%clk 0:03:00]} 4. cxd5 {[%clk 0:02:23]}  exd5 {[%clk 0:03:01]} 5. Nc3 {[%clk 0:02:23]}  Be7 {[%clk 0:03:01]} 6. Bg5 {[%clk 0:02:24]}  O-O {[%clk 0:03:01]} 7. e3 {[%clk 0:02:24]}  Bf5 {[%clk 0:03:01]} 8. Qb3 {[%clk 0:02:22]}  Nbd7 {[%clk 0:02:44]} 9. Nxd5 {[%clk 0:02:09]}  Nxd5 {[%clk 0:02:44]} 10. Qxd5 {[%clk 0:02:09]}  Be6 {[%clk 0:02:16]} 11. Bxe7 {[%clk 0:02:09]}  Qxe7 {[%clk 0:02:14]} 12. Qa5 {[%clk 0:01:43]}  b6 {[%clk 0:02:14]} 13. Qd2 {[%clk 0:01:39]}  c5 {[%clk 0:02:13]} 14. Bd3 {[%clk 0:01:34]}  Bd5 {[%clk 0:02:10]} 15. dxc5 {[%clk 0:01:20]}  Bxf3 {[%clk 0:02:07]} 16. gxf3 {[%clk 0:01:19]}  Nxc5 {[%clk 0:02:03]} 17. Qe2 {[%clk 0:01:02]}  Rfd8 {[%clk 0:01:59]} 18. Bc2 {[%clk 0:00:59]}  Qe5 {[%clk 0:01:49]} 19. Rb1 {[%clk 0:00:52]}  Rac8 {[%clk 0:01:45]} 20. f4 {[%clk 0:00:49]}  Qf6 {[%clk 0:01:41]} 21. O-O {[%clk 0:00:44]}  Ne6 {[%clk 0:01:40]} 22. Rfd1 {[%clk 0:00:36]}  Re8 {[%clk 0:01:40]} 23. Qd3 {[%clk 0:00:32]}  g6 {[%clk 0:01:40]} 24. b3 {[%clk 0:00:11]}  Rc3 {[%clk 0:01:22]} 25. Qd2 {[%clk 0:00:08]}  Rec8 {[%clk 0:01:17]} 26. Rbc1 {[%clk 0:00:07]}  Qh4 {[%clk 0:01:04]} 27. Bb1 {[%clk 0:00:07]}  Qg4+ {[%clk 0:01:01]} 28. Kh1 {[%clk 0:00:07]}  Qf3+ {[%clk 0:01:01]} 29. Kg1 {[%clk 0:00:07]}  Rxc1 {[%clk 0:00:49]} 30. Rxc1 {[%clk 0:00:08]}  Rd8 {[%clk 0:00:49]} 31. Qe1 {[%clk 0:00:07]}  h5 {[%clk 0:00:48]} 32. Bc2 {[%clk 0:00:05]}  h4 {[%clk 0:00:46]} 33. Bd1 {[%clk 0:00:04]}  Qd5 {[%clk 0:00:40]} 34. Bg4 {[%clk 0:00:04]}  f5 {[%clk 0:00:29]} 35. Rd1 {[%clk 0:00:04]}  Qa8 {[%clk 0:00:26]} 36. Rxd8+ {[%clk 0:00:05]}  Qxd8 {[%clk 0:00:27]} 37. Bf3 {[%clk 0:00:05]}  Nc5 {[%clk 0:00:26]} 38. Qd1 {[%clk 0:00:05]}  Qxd1+ {[%clk 0:00:24]} 39. Bxd1 {[%clk 0:00:06]}  Nd3 {[%clk 0:00:24]} 40. Kf1 {[%clk 0:00:04]}  Kg7 {[%clk 0:00:20]} 41. a3 {[%clk 0:00:04]}  Nc5 {[%clk 0:00:19]} 42. b4 {[%clk 0:00:03]}  Nb7 {[%clk 0:00:14]} 43. Bb3 {[%clk 0:00:03]}  Kf6 {[%clk 0:00:14]} 44. Ke2 {[%clk 0:00:03]}  Nd6 {[%clk 0:00:15]} 45. Kd3 {[%clk 0:00:02]}  Ne4 {[%clk 0:00:15]} 46. Ke2 {[%clk 0:00:02]}  Nc3+ {[%clk 0:00:14]} 47. Kd3 {[%clk 0:00:02]}  Ne4 {[%clk 0:00:14]} 48. Ke2 {[%clk 0:00:02]}  Nd6 {[%clk 0:00:14]} 49. f3 {[%clk 0:00:03]}  Ke7 {[%clk 0:00:13]} 50. a4 {[%clk 0:00:03]}  a5 {[%clk 0:00:13]} 51. bxa5 {[%clk 0:00:02]}  bxa5 {[%clk 0:00:14]} 52. Kd3 {[%clk 0:00:03]}  Kd7 {[%clk 0:00:12]} 53. Kd4 {[%clk 0:00:03]}  Kc6 {[%clk 0:00:13]} 54. Bd5+ {[%clk 0:00:03]}  Kd7 {[%clk 0:00:12]} 55. Kc5 {[%clk 0:00:03]}  Kc7 {[%clk 0:00:13]} 56. Be6 {[%clk 0:00:03]}  Nb7+ {[%clk 0:00:08]} 57. Kb5 {[%clk 0:00:03]}  Kd6 {[%clk 0:00:09]} 58. Bf7 {[%clk 0:00:03]}  Nc5 {[%clk 0:00:04]} 59. Bxg6 {[%clk 0:00:03]}  Nd3 {[%clk 0:00:03]} 60. Bxf5 {[%clk 0:00:02]}  Ne1 {[%clk 0:00:04]} 61. h3 {[%clk 0:00:02]}  Nxf3 {[%clk 0:00:04]} 62. Kxa5 {[%clk 0:00:03]}  Kc5 {[%clk 0:00:05]} 63. Ka6 {[%clk 0:00:02]}  Nd2 {[%clk 0:00:05]} 64. Kb7 {[%clk 0:00:02]}  Nf1 {[%clk 0:00:06]} 65. e4 {[%clk 0:00:01]}  Ne3 {[%clk 0:00:06]} 66. a5 {[%clk 0:00:02]}  Nc4 {[%clk 0:00:05]} 67. a6 {[%clk 0:00:03]}  Nd6+ {[%clk 0:00:05]} 68. Kb8 {[%clk 0:00:03]}  Kb6 {[%clk 0:00:05]} 69. a7 {[%clk 0:00:03]}  Nxf5 {[%clk 0:00:04]} 70. a8=Q {[%clk 0:00:04]}  Nd6 {[%clk 0:00:04]} 71. Qa7+ {[%clk 0:00:05]}  Kc6 {[%clk 0:00:04]} 72. Qh7 {[%clk 0:00:06]}  Kc5 {[%clk 0:00:03]} 73. Qxh4 {[%clk 0:00:06]}  Nxe4 {[%clk 0:00:04]} 74. Qe7+ {[%clk 0:00:05]}  Kd4 {[%clk 0:00:04]} 75. Qxe4+ {[%clk 0:00:05]}  Kxe4 {[%clk 0:00:05]} 76. h4 {[%clk 0:00:05]}  Kxf4 {[%clk 0:00:06]} 77. h5 {[%clk 0:00:06]}  Kg5 {[%clk 0:00:06]} 78. h6 {[%clk 0:00:07]}  Kxh6 {[%clk 0:00:07]} 1/2-1/2


[Site "https://www.chess.com"]

[Event "Titled Tuesday Blitz March 15 Late 2022"]
[White "Bok, Benjamin"]
[Black "Ibarra Jerez, Jose Carlos"]
[WhiteFideId "1017063"]
[BlackFideId "2226332"]
[WhiteElo "2658"]
[BlackElo "2626"]
[Result "1-0"]
[Round "03"]
[TimeControl "180+1"]
[Date "2022.03.15"]
[WhiteClock "0:00:02"]
[BlackClock "0:00:02"]

1. d4 {[%clk 0:02:55]}  Nf6 {[%clk 0:03:00]} 2. c4 {[%clk 0:02:55]}  d6 {[%clk 0:03:00]} 3. Nf3 {[%clk 0:02:54]}  g6 {[%clk 0:03:00]} 4. g3 {[%clk 0:02:53]}  Bf5 {[%clk 0:02:59]} 5. Bg2 {[%clk 0:02:53]}  Bg7 {[%clk 0:03:00]} 6. O-O {[%clk 0:02:53]}  O-O {[%clk 0:03:00]} 7. b3 {[%clk 0:02:53]}  Nc6 {[%clk 0:02:56]} 8. Bb2 {[%clk 0:02:53]}  Qd7 {[%clk 0:02:57]} 9. Nc3 {[%clk 0:02:52]}  Bh3 {[%clk 0:02:53]} 10. e4 {[%clk 0:02:51]}  Bxg2 {[%clk 0:02:37]} 11. Kxg2 {[%clk 0:02:52]}  e6 {[%clk 0:02:22]} 12. Qd3 {[%clk 0:02:41]}  Nh5 {[%clk 0:02:19]} 13. Rfe1 {[%clk 0:02:35]}  Rae8 {[%clk 0:01:57]} 14. d5 {[%clk 0:02:31]}  Ne5 {[%clk 0:01:42]} 15. Nxe5 {[%clk 0:02:30]}  Bxe5 {[%clk 0:01:42]} 16. Rad1 {[%clk 0:02:20]}  Bxc3 {[%clk 0:01:38]} 17. Qxc3 {[%clk 0:01:25]}  e5 {[%clk 0:01:36]} 18. c5 {[%clk 0:01:23]}  f5 {[%clk 0:01:30]} 19. f3 {[%clk 0:01:19]}  Rf7 {[%clk 0:01:20]} 20. cxd6 {[%clk 0:00:51]}  cxd6 {[%clk 0:01:19]} 21. Qd3 {[%clk 0:00:49]}  Ref8 {[%clk 0:01:13]} 22. Rf1 {[%clk 0:00:37]}  Nf6 {[%clk 0:01:09]} 23. h3 {[%clk 0:00:18]}  fxe4 {[%clk 0:00:53]} 24. fxe4 {[%clk 0:00:19]}  Nh5 {[%clk 0:00:53]} 25. Rxf7 {[%clk 0:00:10]}  Qxf7 {[%clk 0:00:54]} 26. Qe2 {[%clk 0:00:10]}  Kg7 {[%clk 0:00:43]} 27. Ba3 {[%clk 0:00:10]}  Qf6 {[%clk 0:00:40]} 28. Rd3 {[%clk 0:00:10]}  Qe7 {[%clk 0:00:16]} 29. Rf3 {[%clk 0:00:09]}  Rxf3 {[%clk 0:00:15]} 30. Qxf3 {[%clk 0:00:10]}  Nf6 {[%clk 0:00:16]} 31. Qd3 {[%clk 0:00:08]}  Qc7 {[%clk 0:00:15]} 32. Kf3 {[%clk 0:00:06]}  Kf7 {[%clk 0:00:09]} 33. Qc4 {[%clk 0:00:05]}  Qd7 {[%clk 0:00:03]} 34. Kg2 {[%clk 0:00:05]}  Ne8 {[%clk 0:00:03]} 35. Bc1 {[%clk 0:00:04]}  a6 {[%clk 0:00:03]} 36. Qf1+ {[%clk 0:00:04]}  Kg7 {[%clk 0:00:03]} 37. h4 {[%clk 0:00:02]}  h6 {[%clk 0:00:03]} 38. Qf3 {[%clk 0:00:02]}  Nf6 {[%clk 0:00:03]} 39. Bxh6+ {[%clk 0:00:01]}  Kxh6 {[%clk 0:00:02]} 40. Qxf6 {[%clk 0:00:02]} 1-0


[Site "https://www.chess.com"]

[Event "Titled Tuesday Blitz March 15 Late 2022"]
[White "Cervantes Landeiro, Thalia"]
[Black "Mekhitarian, Krikor Sevag"]
[WhiteFideId "3520498"]
[BlackFideId "2107660"]
[WhiteElo "2021"]
[BlackElo "2598"]
[Result "0-1"]
[Round "03"]
[TimeControl "180+1"]
[Date "2022.03.16"]
[WhiteClock "0:00:03"]
[BlackClock "0:00:03"]

1. d4 {[%clk 0:02:44]}  Nf6 {[%clk 0:02:59]} 2. c4 {[%clk 0:02:44]}  g6 {[%clk 0:03:00]} 3. Nc3 {[%clk 0:02:43]}  d5 {[%clk 0:03:00]} 4. cxd5 {[%clk 0:02:43]}  Nxd5 {[%clk 0:03:01]} 5. e4 {[%clk 0:02:43]}  Nxc3 {[%clk 0:03:01]} 6. bxc3 {[%clk 0:02:44]}  Bg7 {[%clk 0:03:02]} 7. Nf3 {[%clk 0:02:43]}  c5 {[%clk 0:03:02]} 8. Rb1 {[%clk 0:02:43]}  O-O {[%clk 0:03:01]} 9. Be2 {[%clk 0:02:42]}  Qc7 {[%clk 0:03:01]} 10. O-O {[%clk 0:02:40]}  b6 {[%clk 0:03:01]} 11. Be3 {[%clk 0:02:35]}  Bb7 {[%clk 0:03:01]} 12. Qd3 {[%clk 0:02:32]}  Ba6 {[%clk 0:02:51]} 13. Qc2 {[%clk 0:02:32]}  cxd4 {[%clk 0:02:46]} 14. Bxd4 {[%clk 0:02:14]}  Bxe2 {[%clk 0:02:43]} 15. Qxe2 {[%clk 0:02:14]}  Nc6 {[%clk 0:02:27]} 16. Rfc1 {[%clk 0:01:45]}  Rac8 {[%clk 0:02:24]} 17. Bxg7 {[%clk 0:01:36]}  Kxg7 {[%clk 0:02:23]} 18. c4 {[%clk 0:01:36]}  Nb8 {[%clk 0:02:14]} 19. Nd4 {[%clk 0:01:25]}  Nd7 {[%clk 0:02:12]} 20. Nb5 {[%clk 0:01:23]}  Qb7 {[%clk 0:02:09]} 21. Qb2+ {[%clk 0:01:17]}  Kg8 {[%clk 0:02:08]} 22. e5 {[%clk 0:01:04]}  Nc5 {[%clk 0:02:07]} 23. Rd1 {[%clk 0:00:59]}  Rcd8 {[%clk 0:02:05]} 24. h3 {[%clk 0:00:57]}  Rd7 {[%clk 0:01:53]} 25. Rxd7 {[%clk 0:00:44]}  Qxd7 {[%clk 0:01:54]} 26. Nc3 {[%clk 0:00:43]}  Rc8 {[%clk 0:01:29]} 27. Nd5 {[%clk 0:00:41]}  Qe6 {[%clk 0:01:29]} 28. Rd1 {[%clk 0:00:38]}  Nd7 {[%clk 0:01:23]} 29. Qd4 {[%clk 0:00:20]}  Nxe5 {[%clk 0:00:59]} 30. Nc7 {[%clk 0:00:17]}  Qf5 {[%clk 0:00:41]} 31. Nd5 {[%clk 0:00:15]}  Nc6 {[%clk 0:00:33]} 32. Qe3 {[%clk 0:00:15]}  Qe6 {[%clk 0:00:31]} 33. Qd2 {[%clk 0:00:11]}  Qf5 {[%clk 0:00:14]} 34. Re1 {[%clk 0:00:11]}  e6 {[%clk 0:00:14]} 35. Ne3 {[%clk 0:00:09]}  Qc5 {[%clk 0:00:14]} 36. Qd7 {[%clk 0:00:10]}  Ne5 {[%clk 0:00:14]} 37. Qxa7 {[%clk 0:00:09]}  Kg7 {[%clk 0:00:13]} 38. Qa6 {[%clk 0:00:08]}  Nd3 {[%clk 0:00:13]} 39. Rd1 {[%clk 0:00:07]}  Ne5 {[%clk 0:00:11]} 40. Qb7 {[%clk 0:00:06]}  h5 {[%clk 0:00:10]} 41. Re1 {[%clk 0:00:05]}  Qc7 {[%clk 0:00:07]} 42. Qe4 {[%clk 0:00:04]}  Nd7 {[%clk 0:00:07]} 43. Qd4+ {[%clk 0:00:04]}  Kg8 {[%clk 0:00:07]} 44. Rd1 {[%clk 0:00:04]}  Ne5 {[%clk 0:00:04]} 45. Rc1 {[%clk 0:00:02]}  Rd8 {[%clk 0:00:04]} 46. Qf4 {[%clk 0:00:02]}  Qc5 {[%clk 0:00:04]} 47. Kh2 {[%clk 0:00:02]}  Nd3 {[%clk 0:00:03]} 48. Qf6 {[%clk 0:00:03]}  Qc7+ {[%clk 0:00:02]} 49. g3 {[%clk 0:00:02]}  Nxc1 {[%clk 0:00:01]} 50. Ng2 {[%clk 0:00:02]}  Qd6 {[%clk 0:00:01]} 51. Nf4 {[%clk 0:00:03]}  Rf8 {[%clk 0:00:01]} 52. Nxh5 {[%clk 0:00:02]}  gxh5 {[%clk 0:00:01]} 53. Qg5+ {[%clk 0:00:03]}  Kh7 {[%clk 0:00:02]} 54. Qxh5+ {[%clk 0:00:03]}  Kg7 {[%clk 0:00:03]} 55. Qg5+ {[%clk 0:00:04]}  Kh7 {[%clk 0:00:03]} 56. Qh5+ {[%clk 0:00:04]}  Kg8 {[%clk 0:00:04]} 57. Qg5+ {[%clk 0:00:05]}  Kh8 {[%clk 0:00:04]} 58. Qg4 {[%clk 0:00:06]}  Qe5 {[%clk 0:00:03]} 59. Qh4+ {[%clk 0:00:06]}  Kg8 {[%clk 0:00:03]} 60. Qg4+ {[%clk 0:00:06]}  Qg7 {[%clk 0:00:04]} 61. Qf4 {[%clk 0:00:06]}  Nd3 {[%clk 0:00:04]} 62. Qe3 {[%clk 0:00:07]}  Ne5 {[%clk 0:00:04]} 63. Qf4 {[%clk 0:00:07]}  Nxc4 {[%clk 0:00:04]} 64. Qxc4 {[%clk 0:00:07]}  Rd8 {[%clk 0:00:03]} 65. Qf4 {[%clk 0:00:07]}  Rd5 {[%clk 0:00:03]} 66. h4 {[%clk 0:00:07]}  Qe5 {[%clk 0:00:03]} 67. Qg4+ {[%clk 0:00:07]}  Kf8 {[%clk 0:00:04]} 68. Qf3 {[%clk 0:00:06]}  Qf5 {[%clk 0:00:04]} 69. Qe3 {[%clk 0:00:06]}  b5 {[%clk 0:00:04]} 70. Qb6 {[%clk 0:00:06]}  Kg7 {[%clk 0:00:03]} 71. Qe3 {[%clk 0:00:06]}  Re5 {[%clk 0:00:04]} 72. Qd4 {[%clk 0:00:06]}  Qe4 {[%clk 0:00:03]} 73. Qb6 {[%clk 0:00:06]}  Rf5 {[%clk 0:00:03]} 74. Kg1 {[%clk 0:00:04]}  Qe1+ {[%clk 0:00:02]} 75. Kg2 {[%clk 0:00:04]}  Qe4+ {[%clk 0:00:03]} 76. Kg1 {[%clk 0:00:04]}  Qf3 {[%clk 0:00:04]} 77. Qd4+ {[%clk 0:00:04]}  Kh7 {[%clk 0:00:03]} 78. Kf1 {[%clk 0:00:03]}  Rd5 {[%clk 0:00:03]} 0-1


[Site "https://www.chess.com"]

[Event "Titled Tuesday Blitz March 15 Late 2022"]
[White "Constantinou, Peter"]
[Black "Postnikov, Daniil"]
[WhiteFideId "413038"]
[BlackFideId "4166329"]
[WhiteElo "2230"]
[BlackElo "2261"]
[Result "0-1"]
[Round "03"]
[TimeControl "180+1"]
[Date "2022.03.16"]
[WhiteClock "0:00:13"]
[BlackClock "0:00:17"]

1. e4 {[%clk 0:03:00]}  e6 {[%clk 0:03:00]} 2. d4 {[%clk 0:03:00]}  d5 {[%clk 0:03:01]} 3. exd5 {[%clk 0:03:00]}  exd5 {[%clk 0:03:01]} 4. Nf3 {[%clk 0:03:01]}  Nf6 {[%clk 0:03:02]} 5. Bd3 {[%clk 0:03:01]}  c5 {[%clk 0:03:03]} 6. O-O {[%clk 0:03:01]}  Nc6 {[%clk 0:03:03]} 7. Re1+ {[%clk 0:02:59]}  Be6 {[%clk 0:03:04]} 8. c4 {[%clk 0:02:55]}  Be7 {[%clk 0:02:49]} 9. dxc5 {[%clk 0:02:53]}  O-O {[%clk 0:02:48]} 10. Bg5 {[%clk 0:02:52]}  dxc4 {[%clk 0:02:30]} 11. Bf1 {[%clk 0:02:52]}  Bxc5 {[%clk 0:02:19]} 12. Nbd2 {[%clk 0:02:47]}  Qb6 {[%clk 0:02:03]} 13. Bh4 {[%clk 0:02:17]}  Ng4 {[%clk 0:02:00]} 14. Ne4 {[%clk 0:02:13]}  Bb4 {[%clk 0:01:24]} 15. Re2 {[%clk 0:02:05]}  Rfe8 {[%clk 0:01:18]} 16. h3 {[%clk 0:01:54]}  Nge5 {[%clk 0:01:16]} 17. Nxe5 {[%clk 0:01:53]}  Nxe5 {[%clk 0:01:17]} 18. Rc2 {[%clk 0:01:39]}  Bf5 {[%clk 0:01:10]} 19. Re2 {[%clk 0:01:20]}  Nd3 {[%clk 0:01:03]} 20. Ng3 {[%clk 0:01:11]}  Bg6 {[%clk 0:01:01]} 21. Rxe8+ {[%clk 0:00:57]}  Rxe8 {[%clk 0:01:02]} 22. Qf3 {[%clk 0:00:41]}  Bc5 {[%clk 0:00:45]} 23. Nf5 {[%clk 0:00:40]}  Qxb2 {[%clk 0:00:37]} 24. Rd1 {[%clk 0:00:39]}  Qxa2 {[%clk 0:00:26]} 25. Bxd3 {[%clk 0:00:20]}  cxd3 {[%clk 0:00:26]} 26. Rxd3 {[%clk 0:00:20]}  Qa1+ {[%clk 0:00:21]} 27. Kh2 {[%clk 0:00:20]}  Qe5+ {[%clk 0:00:20]} 28. Qg3 {[%clk 0:00:11]}  Qxg3+ {[%clk 0:00:17]} 29. Rxg3 {[%clk 0:00:11]}  Bxf5 {[%clk 0:00:17]} 30. Bf6 {[%clk 0:00:12]}  Bg6 {[%clk 0:00:17]} 31. Rc3 {[%clk 0:00:13]}  Bd6+ {[%clk 0:00:17]} 0-1


[Site "https://www.chess.com"]

[Event "Titled Tuesday Blitz March 15 Late 2022"]
[White "Costachi, Mihnea"]
[Black "Indjic, Aleksandar"]
[WhiteFideId "1217518"]
[BlackFideId "911925"]
[WhiteElo "2464"]
[BlackElo "2616"]
[Result "0-1"]
[Round "03"]
[TimeControl "180+1"]
[Date "2022.03.15"]
[WhiteClock "0:00:02"]
[BlackClock "0:01:24"]

1. d4 {[%clk 0:02:59]}  Nf6 {[%clk 0:02:59]} 2. c4 {[%clk 0:03:00]}  c5 {[%clk 0:02:59]} 3. d5 {[%clk 0:03:00]}  e6 {[%clk 0:03:00]} 4. Nc3 {[%clk 0:03:00]}  exd5 {[%clk 0:03:01]} 5. cxd5 {[%clk 0:03:01]}  d6 {[%clk 0:03:01]} 6. Nf3 {[%clk 0:03:02]}  g6 {[%clk 0:03:02]} 7. Nd2 {[%clk 0:03:02]}  Bg7 {[%clk 0:03:01]} 8. e4 {[%clk 0:03:03]}  O-O {[%clk 0:03:01]} 9. Be2 {[%clk 0:03:04]}  Re8 {[%clk 0:03:01]} 10. O-O {[%clk 0:03:03]}  Nbd7 {[%clk 0:03:02]} 11. h3 {[%clk 0:03:02]}  a6 {[%clk 0:02:56]} 12. a4 {[%clk 0:03:03]}  Rb8 {[%clk 0:02:56]} 13. Re1 {[%clk 0:03:01]}  Qc7 {[%clk 0:02:51]} 14. Bf1 {[%clk 0:02:53]}  h6 {[%clk 0:02:46]} 15. Ra2 {[%clk 0:02:35]}  g5 {[%clk 0:02:44]} 16. b3 {[%clk 0:02:36]}  Ne5 {[%clk 0:02:43]} 17. Nc4 {[%clk 0:02:30]}  Ng6 {[%clk 0:02:40]} 18. e5 {[%clk 0:02:25]}  Nxe5 {[%clk 0:02:38]} 19. Nxe5 {[%clk 0:02:24]}  Rxe5 {[%clk 0:02:29]} 20. Rxe5 {[%clk 0:02:23]}  dxe5 {[%clk 0:02:30]} 21. d6 {[%clk 0:02:18]}  Qc6 {[%clk 0:02:30]} 22. g3 {[%clk 0:01:49]}  Be6 {[%clk 0:02:28]} 23. Bg2 {[%clk 0:01:49]}  e4 {[%clk 0:02:27]} 24. Re2 {[%clk 0:01:45]}  Rd8 {[%clk 0:02:27]} 25. Nxe4 {[%clk 0:01:35]}  Nxe4 {[%clk 0:02:26]} 26. Bxe4 {[%clk 0:01:36]}  Qxd6 {[%clk 0:02:19]} 27. Qxd6 {[%clk 0:01:37]}  Rxd6 {[%clk 0:02:18]} 28. Ba3 {[%clk 0:01:36]}  Rd1+ {[%clk 0:02:07]} 29. Kh2 {[%clk 0:01:33]}  b6 {[%clk 0:02:03]} 30. a5 {[%clk 0:01:26]}  bxa5 {[%clk 0:02:02]} 31. Bxc5 {[%clk 0:01:22]}  Bxb3 {[%clk 0:02:01]} 32. Bf5 {[%clk 0:01:05]}  Rd8 {[%clk 0:01:56]} 33. Bb6 {[%clk 0:01:03]}  Rb8 {[%clk 0:01:43]} 34. Bxa5 {[%clk 0:01:02]}  Rb5 {[%clk 0:01:42]} 35. Re8+ {[%clk 0:00:56]}  Bf8 {[%clk 0:01:42]} 36. Bc3 {[%clk 0:00:40]}  Rxf5 {[%clk 0:01:40]} 37. Bb4 {[%clk 0:00:40]}  Rxf2+ {[%clk 0:01:39]} 38. Kg1 {[%clk 0:00:41]}  Rf3 {[%clk 0:01:36]} 39. Bxf8 {[%clk 0:00:29]}  Kh7 {[%clk 0:01:34]} 40. Bd6 {[%clk 0:00:29]}  a5 {[%clk 0:01:31]} 41. Be5 {[%clk 0:00:22]}  f6 {[%clk 0:01:30]} 42. Bd6 {[%clk 0:00:18]}  a4 {[%clk 0:01:29]} 43. Re7+ {[%clk 0:00:17]}  Kg6 {[%clk 0:01:29]} 44. Kg2 {[%clk 0:00:17]}  Bd5 {[%clk 0:01:27]} 45. Kh2 {[%clk 0:00:18]}  h5 {[%clk 0:01:27]} 46. g4 {[%clk 0:00:18]}  h4 {[%clk 0:01:25]} 47. Ra7 {[%clk 0:00:12]}  Rf1 {[%clk 0:01:24]} 48. Bf8 {[%clk 0:00:02]}  Rh1# {[%clk 0:01:24]} 0-1


[Site "https://www.chess.com"]

[Event "Titled Tuesday Blitz March 15 Late 2022"]
[White "Dauner, Benedikt"]
[Black "Chiku-Ratte, Olivier-Kenta"]
[WhiteFideId "16225899"]
[BlackFideId "2614782"]
[WhiteElo "2230"]
[BlackElo "2324"]
[Result "0-1"]
[Round "03"]
[TimeControl "180+1"]
[Date "2022.03.16"]
[WhiteClock "0:00:04"]
[BlackClock "0:00:11"]

1. d4 {[%clk 0:02:58]}  Nf6 {[%clk 0:02:59]} 2. Nf3 {[%clk 0:02:58]}  g6 {[%clk 0:02:59]} 3. Bg5 {[%clk 0:02:57]}  Bg7 {[%clk 0:03:00]} 4. Nbd2 {[%clk 0:02:57]}  c5 {[%clk 0:03:00]} 5. dxc5 {[%clk 0:02:55]}  Na6 {[%clk 0:03:00]} 6. e4 {[%clk 0:02:54]}  Nxc5 {[%clk 0:02:59]} 7. e5 {[%clk 0:02:46]}  Nfe4 {[%clk 0:02:58]} 8. Be3 {[%clk 0:02:42]}  O-O {[%clk 0:02:54]} 9. Nxe4 {[%clk 0:02:40]}  Nxe4 {[%clk 0:02:53]} 10. Bd3 {[%clk 0:02:41]}  d5 {[%clk 0:02:53]} 11. O-O {[%clk 0:02:28]}  b6 {[%clk 0:02:50]} 12. c3 {[%clk 0:02:26]}  Bb7 {[%clk 0:02:49]} 13. Bd4 {[%clk 0:02:25]}  f6 {[%clk 0:02:45]} 14. exf6 {[%clk 0:02:23]}  exf6 {[%clk 0:02:46]} 15. Nd2 {[%clk 0:02:22]}  Nd6 {[%clk 0:02:44]} 16. Qf3 {[%clk 0:02:16]}  Qd7 {[%clk 0:02:41]} 17. Rae1 {[%clk 0:02:15]}  Rae8 {[%clk 0:02:40]} 18. Qg3 {[%clk 0:02:10]}  Kf7 {[%clk 0:02:30]} 19. Qh4 {[%clk 0:02:06]}  Kg8 {[%clk 0:02:25]} 20. Qg3 {[%clk 0:02:01]}  Re6 {[%clk 0:02:15]} 21. Qh3 {[%clk 0:01:58]}  Rfe8 {[%clk 0:02:14]} 22. Rxe6 {[%clk 0:01:56]}  Qxe6 {[%clk 0:02:14]} 23. Qxe6+ {[%clk 0:01:54]}  Rxe6 {[%clk 0:02:15]} 24. Nf3 {[%clk 0:01:47]}  Kf7 {[%clk 0:02:15]} 25. Re1 {[%clk 0:01:47]}  Ne4 {[%clk 0:02:15]} 26. Re2 {[%clk 0:01:40]}  h6 {[%clk 0:02:12]} 27. Kf1 {[%clk 0:01:40]}  g5 {[%clk 0:02:11]} 28. Nd2 {[%clk 0:01:38]}  f5 {[%clk 0:02:07]} 29. Bxg7 {[%clk 0:01:35]}  Kxg7 {[%clk 0:02:08]} 30. f3 {[%clk 0:01:33]}  Nxd2+ {[%clk 0:02:08]} 31. Rxd2 {[%clk 0:01:34]}  Kf6 {[%clk 0:02:08]} 32. Be2 {[%clk 0:01:33]}  f4 {[%clk 0:02:07]} 33. Kf2 {[%clk 0:01:32]}  Ke5 {[%clk 0:02:03]} 34. Bd1 {[%clk 0:01:29]}  Kd6 {[%clk 0:02:02]} 35. Bb3 {[%clk 0:01:28]}  Kc5 {[%clk 0:02:00]} 36. Bc2 {[%clk 0:01:24]}  a5 {[%clk 0:01:58]} 37. g3 {[%clk 0:01:21]}  fxg3+ {[%clk 0:01:55]} 38. hxg3 {[%clk 0:01:22]}  Rf6 {[%clk 0:01:56]} 39. Rd4 {[%clk 0:01:20]}  b5 {[%clk 0:01:49]} 40. a3 {[%clk 0:01:20]}  Kd6 {[%clk 0:01:47]} 41. b4 {[%clk 0:01:18]}  axb4 {[%clk 0:01:47]} 42. axb4 {[%clk 0:01:18]}  Ke5 {[%clk 0:01:46]} 43. Bd3 {[%clk 0:01:17]}  Rc6 {[%clk 0:01:45]} 44. f4+ {[%clk 0:01:12]}  gxf4 {[%clk 0:01:44]} 45. gxf4+ {[%clk 0:01:13]}  Kd6 {[%clk 0:01:44]} 46. Bxb5 {[%clk 0:01:10]}  Rxc3 {[%clk 0:01:44]} 47. Be2 {[%clk 0:01:07]}  Rc2 {[%clk 0:01:41]} 48. Ke3 {[%clk 0:01:04]}  Rc3+ {[%clk 0:01:40]} 49. Kf2 {[%clk 0:01:04]}  Bc8 {[%clk 0:01:36]} 50. b5 {[%clk 0:00:58]}  Kc5 {[%clk 0:01:34]} 51. Rd2 {[%clk 0:00:52]}  d4 {[%clk 0:01:19]} 52. Rb2 {[%clk 0:00:50]}  Bb7 {[%clk 0:01:16]} 53. Ke1 {[%clk 0:00:46]}  d3 {[%clk 0:01:14]} 54. Bd1 {[%clk 0:00:41]}  Rc4 {[%clk 0:01:06]} 55. Kd2 {[%clk 0:00:39]}  Rxf4 {[%clk 0:01:02]} 56. Kxd3 {[%clk 0:00:39]}  Rd4+ {[%clk 0:01:01]} 57. Kc2 {[%clk 0:00:34]}  Be4+ {[%clk 0:01:00]} 58. Kc1 {[%clk 0:00:34]}  Kb6 {[%clk 0:00:58]} 59. Rh2 {[%clk 0:00:32]}  Rd6 {[%clk 0:00:58]} 60. Be2 {[%clk 0:00:29]}  Ka5 {[%clk 0:00:55]} 61. Rh5 {[%clk 0:00:29]}  Rf6 {[%clk 0:00:49]} 62. Kd2 {[%clk 0:00:27]}  Kb6 {[%clk 0:00:46]} 63. Ke3 {[%clk 0:00:27]}  Bb7 {[%clk 0:00:44]} 64. Re5 {[%clk 0:00:27]}  Bc8 {[%clk 0:00:41]} 65. Rh5 {[%clk 0:00:26]}  Bd7 {[%clk 0:00:40]} 66. Re5 {[%clk 0:00:25]}  Kc7 {[%clk 0:00:40]} 67. Kd4 {[%clk 0:00:24]}  Rf4+ {[%clk 0:00:38]} 68. Kc5 {[%clk 0:00:23]}  Rf6 {[%clk 0:00:37]} 69. Rd5 {[%clk 0:00:21]}  Be6 {[%clk 0:00:35]} 70. b6+ {[%clk 0:00:20]}  Kb7 {[%clk 0:00:33]} 71. Re5 {[%clk 0:00:19]}  Bd7 {[%clk 0:00:21]} 72. Bc4 {[%clk 0:00:17]}  Rc6+ {[%clk 0:00:20]} 73. Kd4 {[%clk 0:00:07]}  Kxb6 {[%clk 0:00:16]} 74. Rb5+ {[%clk 0:00:07]}  Ka7 {[%clk 0:00:13]} 75. Rh5 {[%clk 0:00:08]}  Kb8 {[%clk 0:00:11]} 76. Bd5 {[%clk 0:00:07]}  Ra6 {[%clk 0:00:10]} 77. Ke5 {[%clk 0:00:07]}  Kc7 {[%clk 0:00:10]} 78. Rh2 {[%clk 0:00:07]}  Be8 {[%clk 0:00:09]} 79. Rh4 {[%clk 0:00:07]}  Kd8 {[%clk 0:00:08]} 80. Be6 {[%clk 0:00:06]}  Ke7 {[%clk 0:00:07]} 81. Rxh6 {[%clk 0:00:06]}  Bf7 {[%clk 0:00:07]} 82. Rf6 {[%clk 0:00:01]}  Bxe6 {[%clk 0:00:06]} 83. Rh6 {[%clk 0:00:01]}  Ra5+ {[%clk 0:00:07]} 84. Kd4 {[%clk 0:00:01]}  Kd6 {[%clk 0:00:07]} 85. Rh5 {[%clk 0:00:01]}  Ra4+ {[%clk 0:00:07]} 86. Kc3 {[%clk 0:00:01]}  Bd5 {[%clk 0:00:08]} 87. Rh6+ {[%clk 0:00:01]}  Kc5 {[%clk 0:00:09]} 88. Rh2 {[%clk 0:00:02]}  Ra3+ {[%clk 0:00:09]} 89. Kb2 {[%clk 0:00:02]}  Ra2+ {[%clk 0:00:10]} 90. Kc1 {[%clk 0:00:03]}  Rxh2 {[%clk 0:00:10]} 91. Kd1 {[%clk 0:00:03]}  Kd4 {[%clk 0:00:11]} 92. Kc1 {[%clk 0:00:04]}  Kc3 {[%clk 0:00:11]} 93. Kb1 {[%clk 0:00:04]}  Bb3 {[%clk 0:00:11]} 0-1


[Site "https://www.chess.com"]